Cogmind - Beta 15 @@@ ROGUE MODE // 2025.06.19 @ 03:52:56 Player: Thesoulkiller104 Result: Self-destructed Performance ------------- Evolutions (2) 1000 Regions Visited (6) 1200 Robots Destroyed (109) 545 Value Destroyed (2733) 2733 Prototype IDs (24) 480 Alien Tech Used (0) 0 Bonus (503) 503 TOTAL SCORE: 6461 Bonus ------- High Alert Combat Kills 203 Aligned with FarCom 300 Cogmind --------- Core Integrity 481/550 Matter 300/300 Energy 280/280 System Corruption 0% Temperature Cool (42) Movement Walking (190) Ox1 Location -8/Materials Parts ------- > --- POWER (1) -------- Heavy Ion Engine > --- PROPULSION (4) --- Aluminum Leg Aluminum Leg Aluminum Leg Aluminum Leg > --- UTILITY (4) ------ Improved Heat Sink Medium Storage Unit Advanced Targeting Computer Hardened Light Armor Plating > --- WEAPON (2) ------- Firepult > --- INVENTORY (10) --- Heavy Ion Engine Aluminum Leg Large Matter Pod (150) Advanced Targeting Computer Advanced Targeting Computer Advanced Targeting Computer Autogun Autogun Rocket Launcher Peak State ------------ > --- POWER ------------ Heavy Ion Engine > --- PROPULSION ------- Aluminum Leg Aluminum Leg Aluminum Leg Aluminum Leg > --- UTILITY ---------- Improved Heat Sink Medium Storage Unit Advanced Targeting Computer Hardened Light Armor Plating > --- WEAPON ----------- Firepult > --- INVENTORY -------- Heavy Ion Engine Aluminum Leg Large Matter Pod Advanced Targeting Computer Advanced Targeting Computer Advanced Targeting Computer Autogun Autogun Rocket Launcher [Rating: 38] Favorites ----------- Power Heavy Ion Engine Engine Heavy Ion Engine Propulsion Aluminum Leg Leg Aluminum Leg Wheel Wheel Utility Medium Storage Unit Device Improved Heat Sink Storage Medium Storage Unit Processor Improved Targeting Computer Protection Hardened Light Armor Plating Weapon Autogun Energy Cannon Firepult Ballistic Gun Autogun Build | -11 -10 -9 -9 -9 -8 -8 ------- Run | Yrd Mat Mat Min Exi Min Mat Slots Evolved 4 | . . 2 . . . 2 Power . | . . . . . . . Propulsion 2 | . . 2 . . . . Utility 2 | . . . . . . 2 Weapon . | . . . . . . . Parts Attached 32 | 6 5 14 1 . 1 5 Power 3 | 1 . 1 1 . . . Engine 3 | 1 . 1 1 . . . Core . | . . . . . . . Reactor . | . . . . . . . Propulsion 15 | 2 . 11 . . . 2 Treads . | . . . . . . . Leg 13 | . . 11 . . . 2 Wheel 2 | 2 . . . . . . Hover . | . . . . . . . Flight . | . . . . . . . Utility 7 | 1 2 1 . . 1 2 Device 1 | . . . . . 1 . Storage 2 | 1 1 . . . . . Processor 3 | . 1 1 . . . 1 Hackware . | . . . . . . . Protection 1 | . . . . . . 1 Artifact . | . . . . . . . Weapon 7 | 2 3 1 . . . 1 Energy Gun . | . . . . . . . Energy Cannon 1 | . . . . . . 1 Ballistic Gun 6 | 2 3 1 . . . . Ballistic Cannon . | . . . . . . . Launcher . | . . . . . . . Special Weapon . | . . . . . . . Impact Weapon . | . . . . . . . Slashing Weapon . | . . . . . . . Piercing Weapon . | . . . . . . . Special Melee Weapon . | . . . . . . . Unidentified Prototypes 1 | . . 1 . . . . Parts Lost 3 | . . 3 . . . . Power . | . . . . . . . Propulsion 2 | . . 2 . . . . Utility . | . . . . . . . Weapon 1 | . . 1 . . . . Highest Loss Streak 2 | . . 2 . . . . To Critical Strikes . | . . . . . . . Average Backups 9 | . 7 9 10 9 8 9 Power 1 | . 1 2 1 1 1 1 Propulsion . | . . . 1 1 1 1 Utility 4 | . 3 4 5 5 4 4 Weapon 2 | . 1 2 2 2 2 3 Tool/Special . | . . . . . . . Unused Backups 19 | . 2 6 . 1 1 9 Power 3 | . . 2 . . . 1 Propulsion 4 | . 1 2 . . . 1 Utility 8 | . . 1 . . 1 6 Weapon 4 | . 1 1 . 1 . 1 Tool/Special . | . . . . . . . Average Slot Usage (%) 93 | . 95 94 100 100 100 86 Engine 10 | . 14 11 11 11 11 9 Leg 33 | . . 32 44 44 44 36 Wheel 4 | . 28 5 . . . . Device 2 | . . . . . 5 9 Storage 10 | . 14 11 11 11 11 9 Processor 9 | . 10 11 11 11 5 6 Protection 2 | . . . . . . 8 Energy Cannon 2 | . . . . . . 8 Ballistic Gun 16 | . 27 22 22 22 22 . Peak Build Rating 38 | 6 10 16 16 17 18 38 Average Rating 20 | 4 8 14 15 16 17 36 On Entrance 11 | . 6 10 16 16 17 18 Naked Turns . | . . . . . . . Heaviest Build 46 | 14 21 24 24 24 25 46 Greatest Support 40 | 20 20 40 40 40 40 40 Greatest Overweight (x) 2 | . 1 2 . . . 1 Average Overweight (x) . | . . . . . . 1 Largest Inventory Capacity 10 | 8 10 10 10 10 10 10 Average Capacity 9 | 5 9 10 10 10 10 10 Most Carried 10 | 3 10 10 10 10 10 10 Average Carried 9 | . 7 9 9 9 9 9 Final Capacity 10 | 8 10 10 10 10 10 10 Final Carried 10 | 1 10 10 10 10 9 9 Class Distribution -------------------- 80% | Scavenger-Mutant 19% | Mutant Dominant Class ---------------- Mutant | -10/Materials Scavenger-Mutant | -9/Materials Scavenger-Mutant | -9/Mines Scavenger-Mutant | -9/Exiles Scavenger-Mutant | -8/Mines Scavenger-Mutant | -8/Materials Resources | -11 -10 -9 -9 -9 -8 -8 ----------- Run | Yrd Mat Mat Min Exi Min Mat Matter Collected 1821 | 243 187 1193 . . 151 47 Remotely . | . . . . . . . Salvage Created 3786 | . 229 1764 13 . 155 1625 Parts 235 | . 20 135 2 . 8 70 Haulers Intercepted 6 | . 2 3 . . . 1 Recyclers Shooed 2 | . . . . . 1 1 Parts Field Recycled . | . . . . . . . Retrieved Matter . | . . . . . . . Parts Self-Destructed . | . . . . . . . Prevented . | . . . . . . . Kills | -11 -10 -9 -9 -9 -8 -8 ------- Run | Yrd Mat Mat Min Exi Min Mat Combat Hostiles Destroyed 71 | . 4 39 1 . 3 24 Guns 47 | . 4 39 1 . 3 . Cannons 4 | . . . . . . 4 AOE 12 | . . . . . . 12 Classes Destroyed 13 | . 5 3 . . . 5 Worker 9 | . . 4 . . . 5 Builder 11 | . . . . . . 11 Tunneler 1 | . . . . . . 1 Hauler 6 | . 2 3 . . . 1 Recycler 1 | . . . . . . 1 Operator 3 | . 1 2 . . . . Watcher 7 | . 1 4 . . . 2 Swarmer 18 | . 3 11 1 . . 3 Grunt 38 | . 1 20 . . 2 15 Brawler 3 | . . 2 . . 1 . Duelist 1 | . . . . . . 1 Sentry 9 | . . 6 . . . 3 Specialist 2 | . . . . . . 2 Best Kill Streak 12 | . 3 11 1 . 3 12 Combat Bots Only 10 | . 3 10 1 . 3 4 Max Kills in Single Turn 6 | . 1 2 1 . 1 6 Gunslinging 1 | . . 1 . . . . Exploded 2 | . . . . . . 2 Melee . | . . . . . . . Uniques/NPCs Destroyed . | . . . . . . . Combat | -11 -10 -9 -9 -9 -8 -8 -------- Run | Yrd Mat Mat Min Exi Min Mat Hostile Shots Fired 180 | . 12 103 3 . 8 54 Missed 62 | . 4 33 1 . 4 20 Hits 118 | . 8 70 2 . 4 34 Melee 1 | . . 1 . . . . Projectile 117 | . 8 69 2 . 4 34 Critical Strikes 4 | . . 1 . . . 3 Damage Taken 1446 | . 71 790 17 . 67 501 Core 214 | . 20 107 . . 18 69 Absorbed by Shields . | . . . . . . . Core Remaining (%) 86 | 100 92 . . . 68 . Volleys Fired 185 | . 23 113 2 . 14 33 Largest 2 | . 2 2 2 . 2 1 Hottest 250 | . 46 46 46 . 46 250 Shots Fired 336 | . 46 225 4 . 28 33 Gun 303 | . 46 225 4 . 28 . Cannon 33 | . . . . . . 33 Launcher . | . . . . . . . Special . | . . . . . . . Kinetic 303 | . 46 225 4 . 28 . Thermal 33 | . . . . . . 33 Explosive . | . . . . . . . Electromagnetic . | . . . . . . . Robot Hit Streak 19 | . 10 19 1 . 9 9 Robot Miss Streak 6 | . 4 6 1 . 4 6 Penetration Max . | . . . . . . . Secondary Targets 7 | . . 6 . . 1 . Max Gunslinging Chain 1 | . . 1 . . 1 . Shots Hit Robots 224 | . 22 153 2 . 18 29 Core Hits 159 | . 11 71 1 . 6 70 Critical Kills 3 | . . 3 . . . . Critical Parts Destroyed . | . . . . . . . Critical Strikes 3 | . . 3 . . . . Destroy 3 | . . 3 . . . . Melee Attacks . | . . . . . . . Impact . | . . . . . . . Slashing . | . . . . . . . Piercing . | . . . . . . . Sneak Attacks . | . . . . . . . Combat Hostiles . | . . . . . . . Follow-up Attacks . | . . . . . . . Damage Inflicted 5474 | . 311 2351 30 . 273 2509 Guns 2928 | . 311 2323 30 . 264 . Cannons 523 | . . . . . . 523 Explosions 1976 | . . . . . . 1976 Melee . | . . . . . . . Ramming 47 | . . 28 . . 9 10 Kinetic 2928 | . 311 2323 30 . 264 . Thermal 2499 | . . . . . . 2499 Explosive . | . . . . . . . Electromagnetic . | . . . . . . . Impact . | . . . . . . . Slashing . | . . . . . . . Piercing . | . . . . . . . Highest Corruption . | . . . . . . . Average Corruption . | . . . . . . . Corruption Purged . | . . . . . . . Corruption Blocked . | . . . . . . . Overload Shots . | . . . . . . . Overflow Damage 24 | . . . . . . 24 Projectiles . | . . . . . . . Explosions 24 | . . . . . . 24 Melee . | . . . . . . . Knockbacks . | . . . . . . . Impact . | . . . . . . . Kinetic . | . . . . . . . Secondary . | . . . . . . . Self-Inflicted Damage 2 | . . . . . . 2 Shots 1 | . . . . . . 1 Rammed . | . . . . . . . Targets Rammed 12 | . . 7 . . 3 2 Kicked 12 | . . 7 . . 3 2 Crushed . | . . . . . . . Highest Temperature 476 | . 12 16 2 . 22 476 Average Temperature 97 | . 6 3 1 . 5 184 Received Heat Transfer 579 | . 24 267 . . 36 252 Effects 12 | . . . . . . 12 Shutdowns 1 | . . . . . . 1 Energy Bleed 4 | . . . . . . 4 Interference 5 | . . . . . . 5 Damage (minor) 1 | . . . . . . 1 Damage (major) 1 | . . . . . . 1 Siege Activations . | . . . . . . . Martial Activations . | . . . . . . . Shielding Activations . | . . . . . . . Robots Disrupted . | . . . . . . . Combat Hostiles . | . . . . . . . Robots Corrupted . | . . . . . . . Combat Hostiles . | . . . . . . . Parts Fried . | . . . . . . . Impact Corruptions . | . . . . . . . Robots Melted 8 | . . . . . . 8 Combat Hostiles 8 | . . . . . . 8 Parts Melted 38 | . . . . . . 38 Heat Transferred 13840 | . . . . . . 13840 Parts Sabotaged . | . . . . . . . Parts Stolen . | . . . . . . . Parts Stripped . | . . . . . . . Power Chain Reactions . | . . . . . . . Alert | -11 -10 -9 -9 -9 -8 -8 ------- Run | Yrd Mat Mat Min Exi Min Mat Maximum Alert Level 2 | . . 2 1 . . 2 Low Security (%) 54 | 100 100 44 50 . 100 37 Level 1 16 | . . 12 49 . . 26 Level 2 29 | . . 43 . . . 35 Level 3 . | . . . . . . . Level 4 . | . . . . . . . Level 5 . | . . . . . . . High Security . | . . . . . . . Max Security . | . . . . . . . Peak Influence 609 | . 70 571 221 . 60 609 Initial 211 | . . . 211 . . . Average 213 | . 21 271 194 . 11 276 Influence Increases 2357 | . 125 1097 50 . 70 1015 Destroy 0b10 Robot/C 1420 | . 80 780 20 . 60 480 Destroy 0b10 Robot/NC 190 | . 20 65 . . . 105 Destroy Leader 336 | . 16 194 . . 10 116 Successful Hack 19 | . 9 10 . . . . Disable Machine 120 | . . . . . . 120 Destroy Structure 182 | . . 3 . . . 179 Lose Combat Pursuer 90 | . . 45 30 . . 15 Influence Decreases 1748 | . 125 553 433 161 70 406 Entered New Map 494 | . . . 333 161 . . Time Decay 1224 | . 125 523 100 . 70 406 Lost Part 30 | . . 30 . . . . Squads Dispatched 15 | . 1 7 . . . 7 Investigation 2 | . . 2 . . . . Extermination . | . . . . . . . Reinforcement 12 | . 1 4 . . . 7 Assault 1 | . . 1 . . . . Garrison . | . . . . . . . Intercept . | . . . . . . . Searches Triggered . | . . . . . . . Construction Impeded 2 | . . . . . . 2 Haulers Reinforced . | . . . . . . . Active Scanning Responses . | . . . . . . . Cargo Convoy Interrupts . | . . . . . . . Stealth | -11 -10 -9 -9 -9 -8 -8 --------- Run | Yrd Mat Mat Min Exi Min Mat Distress Signals 12 | . 2 4 1 . . 5 Communications Jammed . | . . . . . . . Distress Signals . | . . . . . . . Times Spotted 106 | . 12 54 3 . 3 34 Peak Tracking Total 7 | . 4 5 3 . 3 7 Tactical Retreats 5 | . . 3 1 . . 1 Traps | -11 -10 -9 -9 -9 -8 -8 ------- Run | Yrd Mat Mat Min Exi Min Mat Traps Triggered 2 | . . 2 . . . . Indirectly . | . . . . . . . Trap Hack Attempts . | . . . . . . . Triggered . | . . . . . . . Disarmed . | . . . . . . . Reprogrammed . | . . . . . . . Reused . | . . . . . . . Traps Extracted . | . . . . . . . Installed . | . . . . . . . Triggered . | . . . . . . . Machines | -11 -10 -9 -9 -9 -8 -8 ---------- Run | Yrd Mat Mat Min Exi Min Mat Machines Disabled 8 | . . . . . . 8 Max in Single Turn 2 | . . . . . . 2 Machines Repaired . | . . . . . . . Machines Dismantled . | . . . . . . . Machines Sabotaged . | . . . . . . . Overloaded Fab Kills . | . . . . . . . Hacking | -11 -10 -9 -9 -9 -8 -8 --------- Run | Yrd Mat Mat Min Exi Min Mat Machines Accessed 9 | . 2 4 . 3 . . Terminals 6 | . 2 4 . . . . Fabricators . | . . . . . . . Repair Stations . | . . . . . . . Recycling Units . | . . . . . . . Scanalyzers . | . . . . . . . Garrison Access . | . . . . . . . Total Hacks 32 | . 6 8 . 18 . . Successful 27 | . 5 4 . 18 . . Failed 5 | . 1 4 . . . . Catastrophic 2 | . . 2 . . . . Database Lockouts . | . . . . . . . Manual 8 | . 3 4 . 1 . . Terminals 14 | . 6 8 . . . . Fabricators . | . . . . . . . Repair Stations . | . . . . . . . Recycling Units . | . . . . . . . Scanalyzers . | . . . . . . . Garrison Access . | . . . . . . . Terminal Hacks 24 | . 3 3 . 18 . . Record 20 | . 1 2 . 17 . . Transport Status 3 | . 2 1 . . . . Proto ID Catalog 1 | . . . . 1 . . Fabricator Hacks . | . . . . . . . Repair Station Hacks . | . . . . . . . Recycling Unit Hacks . | . . . . . . . Scanalyzer . | . . . . . . . Garrison Access Hacks . | . . . . . . . Unauthorized Hacks 3 | . 2 1 . . . . Terminals 3 | . 2 1 . . . . Botnet 3 | . 2 1 . . . . Fabricators . | . . . . . . . Repair Stations . | . . . . . . . Recycling Units . | . . . . . . . Scanalyzers . | . . . . . . . Garrison Access . | . . . . . . . Data Cores Recovered 1 | . 1 . . . . . Used 1 | . 1 . . . . . Hacking Detections 5 | . 2 3 . . . . Full Trace Events 1 | . . 1 . . . . Feedback Events . | . . . . . . . Feedback Blocked . | . . . . . . . Robot Schematics Acquired . | . . . . . . . Robots Built . | . . . . . . . Authchips . | . . . . . . . Time . | . . . . . . . Total Robot Build Rating . | . . . . . . . Part Schematics Acquired . | . . . . . . . Parts Built . | . . . . . . . Authchips . | . . . . . . . Time . | . . . . . . . Total Part Build Rating . | . . . . . . . Parts Repaired . | . . . . . . . Time . | . . . . . . . Parts Recycled . | . . . . . . . Recycled Matter . | . . . . . . . Retrieved Matter . | . . . . . . . Retrieved Components . | . . . . . . . Parts Scanalyzed . | . . . . . . . Part Schematics Acquired . | . . . . . . . Parts Damaged . | . . . . . . . Bothacking | -11 -10 -9 -9 -9 -8 -8 ------------ Run | Yrd Mat Mat Min Exi Min Mat Used RIF Installer . | . . . . . . . Robots Hacked . | . . . . . . . Non-combat . | . . . . . . . Combat . | . . . . . . . Robot Hacks Applied . | . . . . . . . Relay Couplers Released . | . . . . . . . Fabnet Peak Effective % . | . . . . . . . Robots Rewired . | . . . . . . . Allies Hacked . | . . . . . . . Hacks Repelled . | . . . . . . . Allies | -11 -10 -9 -9 -9 -8 -8 -------- Run | Yrd Mat Mat Min Exi Min Mat Total Allies . | . . . . . . . Largest Group . | . . . . . . . Highest-Rated Group . | . . . . . . . Highest-Rated Ally . | . . . . . . . Total Orders . | . . . . . . . Ally Attacks . | . . . . . . . Total Damage . | . . . . . . . Kills . | . . . . . . . Allies Corrupted . | . . . . . . . Allies Melted . | . . . . . . . Intel | -11 -10 -9 -9 -9 -8 -8 ------- Run | Yrd Mat Mat Min Exi Min Mat Active Infowar (turns) . | . . . . . . . Robot Analysis Total . | . . . . . . . Derelict Logs Recovered . | . . . . . . . Drone Launches . | . . . . . . . Drone Recoveries . | . . . . . . . Exploration | -11 -10 -9 -9 -9 -8 -8 ------------- Run | Yrd Mat Mat Min Exi Min Mat Turns Passed 4622 | 43 449 1601 206 678 370 1275 Spaces Moved 2870 | 41 392 985 159 564 214 515 Core 8 | 8 . . . . . . Treads . | . . . . . . . Legs 2140 | . . 688 159 564 214 515 Wheels 722 | 33 392 297 . . . . Hover . | . . . . . . . Flight . | . . . . . . . Fastest Speed 50 | 50 80 95 120 120 120 190 Average Speed 125 | 74 88 112 120 120 120 190 Slowest Speed 260 | 80 95 260 120 120 120 190 Overloaded Moves . | . . . . . . . Propulsion Burnouts . | . . . . . . . Robots Hopped . | . . . . . . . Potential Cave-ins . | . . . . . . . Cave-ins Triggered . | . . . . . . . Exploration Rate (%) 49 | 3 52 90 38 91 37 36 Regions Visited 6 Branch Regions 3 Pre-discovered Areas . | . . . . . . . Known Exits Taken 1 | . 1 . . . . . Unknown Exits Taken 5 | 1 . 1 1 1 1 . Scrap Searched 2 | . . . . . 2 . Spaces Dug 5 | . . . . . . 5 Terrain Destroyed 196 | . . . . . . 196 Melee . | . . . . . . . Projectile 8 | . . . . . . 8 AOE 188 | . . . . . . 188 Terrain Rammed . | . . . . . . . Walls Destroyed . | . . . . . . . Machines Disabled . | . . . . . . . Actions | -11 -10 -9 -9 -9 -8 -8 --------- Run | Yrd Mat Mat Min Exi Min Mat Total 3637 | 53 458 1303 171 566 305 781 Wait 446 | . 12 143 8 . 71 212 Move 2864 | 40 391 984 158 563 213 515 Hop . | . . . . . . . Pick Up 57 | 7 17 23 1 1 1 7 Fast Attach . | . . . . . . . Attach 31 | 6 5 13 1 . 1 5 Detach 8 | . 3 2 . . 1 2 Swap 1 | . . 1 . . . . Drop 33 | . 7 17 1 2 1 5 Fire 185 | . 23 113 2 . 14 33 Melee . | . . . . . . . Ram . | . . . . . . . Kick 12 | . . 7 . . 3 2 Crush . | . . . . . . . Escape Stasis . | . . . . . . . Rewire . | . . . . . . . Trap . | . . . . . . . Miscellaneous . | . . . . . . . Route ------- -11/Scrapyard -10/Materials (discovered 3 exits: *Mat x2 / *Min) -9/Materials (discovered 6 exits: [*Mat x3] / [*Min x2] / [*Sto]) -9/Mines -9/Exiles -8/Mines -8/Materials History --------- Turn | Location | Event 3 | -11/Scrapyard | Discovered new exit (range 15) 44 | -11/Scrapyard | Entered Materials 131 | -10/Materials | Discovered new exit (range 8) 138 | -10/Materials | Identified exit to Mines 166 | -10/Materials | Discovered new exit (range 5) 318 | -10/Materials | Build established: Mutant 361 | -10/Materials | Identified exit to Materials 393 | -10/Materials | Discovered exit to Materials (range 15) 493 | -10/Materials | Entered another Materials area 493 | -9/Materials | Evolved 2 slots: Propulsion x2 838 | -9/Materials | Discovered new exit (range 6) 979 | -9/Materials | Discovered new exit (range 11) 1189 | -9/Materials | Build established: Scavenger-Mutant 1267 | -9/Materials | Discovered new exit (range 14) 1430 | -9/Materials | Destroyed 10 combat bots 1756 | -9/Materials | Discovered new exit (range 12) 1824 | -9/Materials | Discovered new exit (range 9) 1928 | -9/Materials | Discovered new exit (range 10) 2093 | -9/Materials | First assault squad dispatched 2094 | -9/Materials | Entered Mines 2105 | -9/Mines | Received a Rocket Launcher from a helpful Derelict 2158 | -9/Mines | Assembled infested the area 2255 | -9/Mines | Met 8R-AWN 2295 | -9/Mines | Discovered new exit (range 5) 2300 | -9/Mines | Entered Exiles 2330 | -9/Exiles | Welcomed by 8R-AWN 2352 | -9/Exiles | Met EX-HEX 2414 | -9/Exiles | Met EX-DEC 2444 | -9/Exiles | Visited The Gauntlet 2642 | -9/Exiles | Discovered new exit (range 14) 2722 | -9/Exiles | Met EX-BIN 2748 | -9/Exiles | Aligned with FarCom system 2749 | -9/Exiles | Given EX-Vault access code 2792 | -9/Exiles | Opened EX-Vault 2855 | -9/Exiles | Found Firepult 2878 | -9/Exiles | Warned to stay clear of 0b10 Research branches 2978 | -9/Exiles | Left Exiles lab with Firepult 2978 | -9/Exiles | Entered Mines 3337 | -8/Mines | Discovered new exit (range 8) 3348 | -8/Mines | Entered Materials 3348 | -8/Materials | Evolved 2 slots: Utility x2 4623 | -8/Materials | Self-destructed Last Messages --------------- 04584_ G-47 Trooper overheating. 04585_ Melted Aluminum Leg. 04585_ G-47 Trooper critical meltdown. 04585_ Imp. Heat Sink melted. 04586_ G-50 Soldier critical meltdown. 04586_ Adv. Heat Sink melted. 04587_ G-47 Trooper heat damages Particle Gun. 04589_ Overheating: System interference. 04589_ Adv. Targeting Computer temporarily disabled. 04589_ Firepult temporarily disabled. 04589_ U-05 Engineer lays Concrete. 04591_ U-05 Engineer builds a Door. 04592_ U-05 Engineer lays Concrete. 04595_ G-47 Trooper heat short circuits Aluminum Leg. 04595_ U-05 Engineer lays Concrete. 04596_ Acquired 7 matter. 04611_ Broken Aluminum Leg melted. 04611_ Imp. Heat Sink melted. 04611_ G-47 Trooper destroyed. 04614_ K-01 Serf collects debris. Map ----- +----------------------------------------------------+ | ????????????????????????????????? ?????????????? | | ????????????????????????????????? #????????????? | | ????????????????????????????????? #????????????? | | ???????????????????????????????## ##???????????? | | ???????????????????????????????# #???????????? | | ??????????????????????????????? #???????????? | | ???????????????????????????????? ! +???????????? | | ???????????????????????????????? ????????????? | | ???????????????????????????????? ????????????? | | ????????????????????????#####???# ##?"?????????? | | ??????????????????????### ##### "" ??????????? | | ????????????????????### # ! # # #####??#??? | | ????############################# #" #""# ? | | ????# %% | | ????# % % = | | ????# %! % %%[ | | ????# #######+#############+### %* #####??????? | | ????# #???? ????? ??# * ! ???????? | | ????# #???# #????"""" #% =# ?????????? | | ????# #???#[ """#?????"""""" # + ???????????? | | ##### ###?# """#?????? "????# #????????????? | | # # #?# """#?????? ????# ####?????????? | | # # #?#/ #?????#+####;# ## #?????????? | | # %################## ## #???????? | | !#! % w %* ##??????? | | [#%% @ #??????? | | +%! a %! ####### ###?? | | =#* ########### ########;###k | | =# # "####+### ####+######### ###?? | | [+% # ^ ???# "w ""#? ? ####??????? | | ######+###### """??##""" T"# ??????????? | | # [ %% # "" ??#""" ""# #?????????? | | # =" " # """ ??#""" # / #?????????? | | # * " # ??# "" # #?????????? | | # " " # ^ """???#""" # ![ #?????????? | | + """ """ # """???#"" # ![ #?????????? | | # """ """ # ""????#""= # ![ #?????????? | | # ] # ????# # #?????????? | | ######+#########+##?### ##########?????????? | | ?????# #?# #############??????????????????? | | ?????# #?# #??????????????????????? | | ?????#%#?# #??????????????????????? | | ?????# #?# #??????????????????????? | | ????## ### #??????????????????????? | | ??### ##+#######????????????????? | | ??#"" # #????????????????? | | ??#"T **[ + #????????????????? | | "" *[[ """ #### # #????????????????? | | # *[ """ #??# # #????????????????? | | # """ #??# ##########????????????????? | +----------------------------------------------------+ Best States ------------- Heat Dissipation 45 Energy Generation 14 Energy Capacity 280 Matter Stores 300 Matter Capacity 300 Sight Range 16 Terrain Scan Density 10 Armor Coverage 150 Evasion (%) 55 Targeting Accuracy 8 Item Schematics ----------------- None Robot Schematics ------------------ None Fabricated ------------ Nothing Repaired ---------- Nothing Alien Tech Used ----------------- None Achievements -------------- None Challenges ------------ None Game ------ Seed IonicImpulseBasin Manual? 0 Play Time 00:43:53 Cumulative 32.8 hours Start 2025.06.02 @ 05:24:59 End 2025.06.19 @ 03:52:56 Sessions 5 Manual Loads 0 Difficulty Rogue Special Mode None Game No. 27 Rogue 2 Adventurer 18 Explorer 7 Win Type - Total 1 Types 1/0/0/0/0/0/0/0/0/0 Lore% 13 Gallery% 21 Achievement% 29 Wizard Run 0 Options --------- Layout 1 ASCII 0 Keyboard 1 Movement Numpad Keybinds 0 Fullscreen 1 Font 32/SmallcapsGlow Map View 77x35 Zoom Use 1% Tactical HUD 1 Map Filters NONE Filters NONE Steam 1 RUN: 8d0accfa-5e08-49ad-8162-067b15d83100